[Event "Late-Titled-Tuesday-Blitz-June-25-2024"]
[Site "Chess.com"]
[Date "2024.06.25"]
[Round "6"]
[White "GrotBchess"]
[Black "IndianSchoolOfSuffering"]
[Result "0-1"]
[WhiteElo "2582"]
[BlackElo "2503"]
[TimeControl "180+1"]
[EndTime "15:02:22 PDT"]
[Termination "IndianSchoolOfSuffering won by checkmate"]

1. e4 {[%clk 0:03:00.9]} 1... e5 {[%clk 0:02:54.4]} 2. Nf3 {[%clk 0:03:00]} 2...
Nc6 {[%clk 0:02:53.1]} 3. Bb5 {[%clk 0:03:00.2]} 3... a6 {[%clk 0:02:40]} 4. Ba4
{[%clk 0:02:59.7]} 4... Nf6 {[%clk 0:02:39]} 5. O-O {[%clk 0:02:58.9]} 5... b5
{[%clk 0:02:38.2]} 6. Bb3 {[%clk 0:02:58]} 6... Bc5 {[%clk 0:02:38.6]} 7. c3
{[%clk 0:02:57.2]} 7... d6 {[%clk 0:02:39.1]} 8. h3 {[%clk 0:02:55.8]} 8... Bb6
{[%clk 0:02:38.8]} 9. d4 {[%clk 0:02:54.7]} 9... O-O {[%clk 0:02:34.6]} 10. a4
{[%clk 0:02:52.7]} 10... Rb8 {[%clk 0:02:33.6]} 11. a5 {[%clk 0:02:47.6]} 11...
Ba7 {[%clk 0:02:27.3]} 12. dxe5 {[%clk 0:02:40.9]} 12... Nxe5 {[%clk 0:02:22.4]}
13. Nxe5 {[%clk 0:02:37.9]} 13... dxe5 {[%clk 0:02:22.2]} 14. Qe2 {[%clk
0:02:37.6]} 14... Bb7 {[%clk 0:02:16.8]} 15. Bg5 {[%clk 0:02:36.1]} 15... h6
{[%clk 0:02:13.8]} 16. Bxf6 {[%clk 0:02:27.1]} 16... Qxf6 {[%clk 0:02:12.5]} 17.
Nd2 {[%clk 0:02:27]} 17... Rbd8 {[%clk 0:02:09.8]} 18. Nf3 {[%clk 0:02:26.6]}
18... Rd6 {[%clk 0:02:03.2]} 19. c4 {[%clk 0:02:14.5]} 19... b4 {[%clk
0:01:57.5]} 20. Rad1 {[%clk 0:02:13.6]} 20... Rfd8 {[%clk 0:01:56.4]} 21. Rd5
{[%clk 0:02:11.3]} 21... Bxd5 {[%clk 0:01:19.2]} 22. cxd5 {[%clk 0:02:10.1]}
22... Bd4 {[%clk 0:01:14.9]} 23. Nh4 {[%clk 0:02:06.9]} 23... Qxh4 {[%clk
0:01:13.6]} 24. Bc4 {[%clk 0:02:00.4]} 24... Rg6 {[%clk 0:01:11.7]} 25. Qf3
{[%clk 0:02:00.6]} 25... Rdd6 {[%clk 0:01:09.9]} 26. Kh2 {[%clk 0:01:56.8]}
26... Rdf6 {[%clk 0:01:09.1]} 27. Qe2 {[%clk 0:01:55.2]} 27... Bxf2 {[%clk
0:01:00.6]} 28. d6 {[%clk 0:01:52.5]} 28... Rxg2+ {[%clk 0:00:49.6]} 29. Kxg2
{[%clk 0:01:49.8]} 29... Qg3+ {[%clk 0:00:50.5]} 30. Kh1 {[%clk 0:01:49.7]}
30... Qxh3# {[%clk 0:00:51.4]} 0-1

[Event "Late-Titled-Tuesday-Blitz-June-25-2024"]
[Site "Chess.com"]
[Date "2024.06.25"]
[Round "6"]
[White "Necromon"]
[Black "Bryanl106"]
[Result "1-0"]
[WhiteElo "2573"]
[BlackElo "2724"]
[TimeControl "180+1"]
[EndTime "15:02:46 PDT"]
[Termination "Necromon won by checkmate"]

1. Nf3 {[%clk 0:03:00.9]} 1... Nf6 {[%clk 0:02:59.1]} 2. g3 {[%clk 0:03:00.6]}
2... g6 {[%clk 0:02:59.1]} 3. Bg2 {[%clk 0:03:00.9]} 3... Bg7 {[%clk 0:03:00]}
4. O-O {[%clk 0:03:00.7]} 4... O-O {[%clk 0:03:00.9]} 5. c4 {[%clk 0:03:01.2]}
5... c5 {[%clk 0:03:00.8]} 6. d4 {[%clk 0:03:00.6]} 6... cxd4 {[%clk 0:03:01.3]}
7. Nxd4 {[%clk 0:03:01.5]} 7... Nc6 {[%clk 0:02:57.4]} 8. Nc3 {[%clk 0:03:00.9]}
8... a6 {[%clk 0:02:52.5]} 9. Nc2 {[%clk 0:02:55.4]} 9... Rb8 {[%clk 0:02:45.7]}
10. Bf4 {[%clk 0:02:34.3]} 10... e5 {[%clk 0:02:40.1]} 11. Be3 {[%clk
0:02:32.4]} 11... d6 {[%clk 0:02:38]} 12. Qd2 {[%clk 0:02:25.9]} 12... Ng4
{[%clk 0:02:32.7]} 13. Rfd1 {[%clk 0:02:21.7]} 13... Nxe3 {[%clk 0:02:32]} 14.
Nxe3 {[%clk 0:02:22]} 14... Nd4 {[%clk 0:02:32]} 15. Ned5 {[%clk 0:02:12.5]}
15... b5 {[%clk 0:02:25.2]} 16. e3 {[%clk 0:02:12.7]} 16... Ne6 {[%clk
0:02:20.6]} 17. cxb5 {[%clk 0:02:09.8]} 17... axb5 {[%clk 0:02:20.2]} 18. b4
{[%clk 0:02:10.2]} 18... h5 {[%clk 0:02:04.5]} 19. a4 {[%clk 0:01:56.2]} 19...
bxa4 {[%clk 0:02:04.5]} 20. Rxa4 {[%clk 0:01:56.2]} 20... h4 {[%clk 0:02:03.5]}
21. b5 {[%clk 0:01:52.5]} 21... Nc5 {[%clk 0:02:03.1]} 22. Rb4 {[%clk
0:01:42.9]} 22... h3 {[%clk 0:02:02.8]} 23. Bf1 {[%clk 0:01:37.5]} 23... Bf5
{[%clk 0:01:55.7]} 24. b6 {[%clk 0:01:25.7]} 24... Qd7 {[%clk 0:01:42.8]} 25.
Bb5 {[%clk 0:01:16.3]} 25... Qb7 {[%clk 0:01:39.5]} 26. Bc6 {[%clk 0:01:14.9]}
26... Qa6 {[%clk 0:01:37.1]} 27. Ne7+ {[%clk 0:01:15]} 27... Kh7 {[%clk
0:01:25.5]} 28. Rh4+ {[%clk 0:01:15.9]} 28... Bh6 {[%clk 0:01:25.8]} 29. e4
{[%clk 0:01:11]} 29... Kg7 {[%clk 0:01:21.7]} 30. Qxh6+ {[%clk 0:01:10.3]} 30...
Kf6 {[%clk 0:01:21.9]} 31. Ncd5+ {[%clk 0:01:00]} 31... Ke6 {[%clk 0:01:20.5]}
32. exf5# {[%clk 0:01:00.7]} 1-0

[Event "Late-Titled-Tuesday-Blitz-June-25-2024"]
[Site "Chess.com"]
[Date "2024.06.25"]
[Round "6"]
[White "sergeikim"]
[Black "Yurovskykh_Oleksandr"]
[Result "0-1"]
[WhiteElo "2597"]
[BlackElo "2622"]
[TimeControl "180+1"]
[EndTime "15:03:03 PDT"]
[Termination "Yurovskykh_Oleksandr won by resignation"]

1. d4 {[%clk 0:03:00.9]} 1... d5 {[%clk 0:02:58.4]} 2. c4 {[%clk 0:03:00.5]}
2... dxc4 {[%clk 0:02:55.4]} 3. e3 {[%clk 0:03:00]} 3... Nf6 {[%clk 0:02:53.2]}
4. Bxc4 {[%clk 0:02:59.7]} 4... e6 {[%clk 0:02:51.6]} 5. Nf3 {[%clk 0:02:59.5]}
5... c5 {[%clk 0:02:51.9]} 6. O-O {[%clk 0:02:59.2]} 6... Nc6 {[%clk 0:02:51.6]}
7. Qe2 {[%clk 0:02:58.8]} 7... cxd4 {[%clk 0:02:49.1]} 8. Rd1 {[%clk 0:02:58.7]}
8... Be7 {[%clk 0:02:47.1]} 9. exd4 {[%clk 0:02:58.8]} 9... O-O {[%clk
0:02:46.8]} 10. Nc3 {[%clk 0:02:58.8]} 10... Na5 {[%clk 0:02:46.8]} 11. Bd3
{[%clk 0:02:54.7]} 11... b6 {[%clk 0:02:46.4]} 12. Ne4 {[%clk 0:02:28.3]} 12...
Bb7 {[%clk 0:02:45]} 13. Ne5 {[%clk 0:02:18.5]} 13... Nxe4 {[%clk 0:02:11.6]}
14. Bxe4 {[%clk 0:02:16.8]} 14... Bxe4 {[%clk 0:02:12]} 15. Qxe4 {[%clk
0:02:16.9]} 15... Qd5 {[%clk 0:02:09.6]} 16. Qxd5 {[%clk 0:02:11]} 16... exd5
{[%clk 0:02:10.5]} 17. b3 {[%clk 0:01:49.6]} 17... Rac8 {[%clk 0:02:06]} 18. Bf4
{[%clk 0:01:43.3]} 18... Ba3 {[%clk 0:01:52]} 19. Rd2 {[%clk 0:01:39.3]} 19...
Bc1 {[%clk 0:01:37.2]} 20. h4 {[%clk 0:01:36.8]} 20... Bxd2 {[%clk 0:01:33.7]}
21. Bxd2 {[%clk 0:01:37.7]} 21... Rc2 {[%clk 0:01:32.7]} 22. Bxa5 {[%clk
0:01:25.1]} 22... bxa5 {[%clk 0:01:33.6]} 23. a3 {[%clk 0:01:21.5]} 23... Rfc8
{[%clk 0:01:27.8]} 24. b4 {[%clk 0:01:17]} 24... Rc1+ {[%clk 0:01:25.2]} 25.
Rxc1 {[%clk 0:01:16.4]} 25... Rxc1+ {[%clk 0:01:26.1]} 26. Kh2 {[%clk
0:01:16.9]} 26... a4 {[%clk 0:01:22.6]} 27. b5 {[%clk 0:01:10.8]} 27... Rb1
{[%clk 0:01:21.8]} 28. Nc6 {[%clk 0:01:09.2]} 28... Rxb5 {[%clk 0:01:20.9]} 29.
Nxa7 {[%clk 0:01:09.7]} 29... Rb3 {[%clk 0:01:19.6]} 30. Nc6 {[%clk 0:01:09.2]}
30... Rxa3 {[%clk 0:01:19]} 31. Ne7+ {[%clk 0:01:09]} 31... Kf8 {[%clk
0:01:18.4]} 32. Nxd5 {[%clk 0:01:09.9]} 32... Rd3 {[%clk 0:01:10.3]} 0-1

[Event "Late-Titled-Tuesday-Blitz-June-25-2024"]
[Site "Chess.com"]
[Date "2024.06.25"]
[Round "6"]
[White "Andrey-Ivanov2011"]
[Black "IngOscarArdila"]
[Result "1-0"]
[WhiteElo "2132"]
[BlackElo "2361"]
[TimeControl "180+1"]
[EndTime "15:03:14 PDT"]
[Termination "Andrey-Ivanov2011 won by resignation"]

1. e4 {[%clk 0:03:00.9]} 1... e5 {[%clk 0:03:00]} 2. Nf3 {[%clk 0:02:56.1]} 2...
Nf6 {[%clk 0:03:00.3]} 3. Nxe5 {[%clk 0:02:54.7]} 3... d6 {[%clk 0:03:00.7]} 4.
Nf3 {[%clk 0:02:54.7]} 4... Nxe4 {[%clk 0:03:01.1]} 5. Nc3 {[%clk 0:02:54.9]}
5... Nf6 {[%clk 0:03:01.2]} 6. Bc4 {[%clk 0:02:51]} 6... Bg4 {[%clk 0:03:01]} 7.
h3 {[%clk 0:02:50.8]} 7... Bh5 {[%clk 0:03:01.1]} 8. O-O {[%clk 0:02:47]} 8...
Be7 {[%clk 0:03:01.3]} 9. Re1 {[%clk 0:02:47.3]} 9... O-O {[%clk 0:03:01.5]} 10.
d4 {[%clk 0:02:45.9]} 10... Nbd7 {[%clk 0:03:01.4]} 11. Bg5 {[%clk 0:02:45]}
11... Re8 {[%clk 0:03:00.7]} 12. Qd3 {[%clk 0:02:43.3]} 12... c6 {[%clk
0:03:00.3]} 13. Bxf6 {[%clk 0:02:40.8]} 13... Nxf6 {[%clk 0:02:59.5]} 14. d5
{[%clk 0:02:41]} 14... c5 {[%clk 0:02:59.3]} 15. Ne4 {[%clk 0:02:39.6]} 15...
Bg6 {[%clk 0:02:58.8]} 16. Nxf6+ {[%clk 0:02:38.8]} 16... Bxf6 {[%clk
0:02:59.7]} 17. Qb3 {[%clk 0:02:36.3]} 17... Qc7 {[%clk 0:02:54.8]} 18. c3
{[%clk 0:02:31.1]} 18... a6 {[%clk 0:02:54.5]} 19. a4 {[%clk 0:02:30.7]} 19...
b6 {[%clk 0:02:53.9]} 20. Bxa6 {[%clk 0:02:18]} 20... Rxe1+ {[%clk 0:02:51.3]}
21. Rxe1 {[%clk 0:02:18.9]} 21... h6 {[%clk 0:02:38.8]} 22. Bb5 {[%clk
0:02:16.9]} 22... Kh7 {[%clk 0:02:31.2]} 23. Bc6 {[%clk 0:02:16.6]} 23... Rd8
{[%clk 0:02:29.3]} 24. Nd2 {[%clk 0:02:11.1]} 24... Be5 {[%clk 0:02:14.6]} 25.
Nc4 {[%clk 0:02:03.1]} 25... Bf6 {[%clk 0:02:14.8]} 26. Qxb6 {[%clk 0:02:00.8]}
26... Qxb6 {[%clk 0:02:14.4]} 27. Nxb6 {[%clk 0:02:01.7]} 27... Rb8 {[%clk
0:02:05.6]} 28. a5 {[%clk 0:02:01.6]} 28... Bd3 {[%clk 0:02:04.5]} 29. Re8
{[%clk 0:02:00]} 29... Rxe8 {[%clk 0:02:01.5]} 30. Bxe8 {[%clk 0:02:00.9]} 30...
Bd8 {[%clk 0:01:56.9]} 31. c4 {[%clk 0:01:49.6]} 31... Kg8 {[%clk 0:01:51.6]}
32. Bb5 {[%clk 0:01:42.9]} 32... Bf5 {[%clk 0:01:46.3]} 33. g4 {[%clk
0:01:38.7]} 33... Bd3 {[%clk 0:01:18.6]} 34. Kg2 {[%clk 0:01:36.3]} 34... f5
{[%clk 0:01:07.9]} 35. Bd7 {[%clk 0:01:30.5]} 35... fxg4 {[%clk 0:01:04.7]} 36.
hxg4 {[%clk 0:01:31.4]} 36... Kf8 {[%clk 0:01:03.8]} 37. Be6 {[%clk 0:01:26.3]}
37... Ke7 {[%clk 0:00:54.1]} 38. Nc8+ {[%clk 0:01:25.1]} 38... Kf6 {[%clk
0:00:53.8]} 39. a6 {[%clk 0:01:25.4]} 39... Bxc4 {[%clk 0:00:46.9]} 40. a7
{[%clk 0:01:24.2]} 1-0

[Event "Late-Titled-Tuesday-Blitz-June-25-2024"]
[Site "Chess.com"]
[Date "2024.06.25"]
[Round "6"]
[White "KaydenTroffChess"]
[Black "Alblooshi_Hamad"]
[Result "1-0"]
[WhiteElo "2808"]
[BlackElo "2314"]
[TimeControl "180+1"]
[EndTime "15:03:15 PDT"]
[Termination "KaydenTroffChess won by resignation"]

1. d4 {[%clk 0:03:00.9]} 1... Nf6 {[%clk 0:02:59.3]} 2. Nf3 {[%clk 0:03:01.2]}
2... c5 {[%clk 0:02:57.1]} 3. dxc5 {[%clk 0:03:00.7]} 3... e6 {[%clk 0:02:57.1]}
4. Be3 {[%clk 0:03:01.2]} 4... Nc6 {[%clk 0:02:52]} 5. Nbd2 {[%clk 0:03:00.2]}
5... b6 {[%clk 0:02:44.6]} 6. cxb6 {[%clk 0:02:59.4]} 6... axb6 {[%clk
0:02:45.5]} 7. Nc4 {[%clk 0:02:49.3]} 7... Nd5 {[%clk 0:02:37.1]} 8. Bg5 {[%clk
0:02:45]} 8... f6 {[%clk 0:02:31.7]} 9. e4 {[%clk 0:02:41.8]} 9... Ndb4 {[%clk
0:02:11.3]} 10. Be3 {[%clk 0:02:40]} 10... b5 {[%clk 0:02:07.6]} 11. Ncd2 {[%clk
0:02:39.9]} 11... Bb7 {[%clk 0:02:03.6]} 12. c3 {[%clk 0:02:39.4]} 12... Na6
{[%clk 0:02:02.6]} 13. Bxb5 {[%clk 0:02:39.3]} 13... Be7 {[%clk 0:01:58.3]} 14.
O-O {[%clk 0:02:33.8]} 14... O-O {[%clk 0:01:57.6]} 15. Nc4 {[%clk 0:02:33.3]}
15... Nc7 {[%clk 0:01:50.6]} 16. a4 {[%clk 0:02:28.1]} 16... f5 {[%clk
0:01:35.4]} 17. Nb6 {[%clk 0:02:02.4]} 17... fxe4 {[%clk 0:01:09]} 18. Nd4
{[%clk 0:02:00.7]} 18... Rb8 {[%clk 0:01:02]} 19. Nxd7 {[%clk 0:01:57]} 19...
Qxd7 {[%clk 0:00:57.5]} 20. Nxc6 {[%clk 0:01:56.9]} 20... Bxc6 {[%clk
0:00:53.3]} 21. Qxd7 {[%clk 0:01:56.2]} 21... Bxd7 {[%clk 0:00:52.9]} 22. Bxd7
{[%clk 0:01:57.1]} 22... Rxb2 {[%clk 0:00:51.8]} 23. a5 {[%clk 0:01:56.6]} 23...
Na6 {[%clk 0:00:48.6]} 24. Bxe6+ {[%clk 0:01:56.2]} 24... Kh8 {[%clk 0:00:49.3]}
25. Bc4 {[%clk 0:01:54.3]} 25... Nc5 {[%clk 0:00:40.2]} 26. a6 {[%clk
0:01:54.2]} 26... Nxa6 {[%clk 0:00:20.4]} 27. Rxa6 {[%clk 0:01:52.6]} 27... Bf6
{[%clk 0:00:20.4]} 28. Re6 {[%clk 0:01:43.7]} 28... Bxc3 {[%clk 0:00:18.8]} 29.
Rxe4 {[%clk 0:01:44.2]} 29... Bf6 {[%clk 0:00:18.4]} 30. g3 {[%clk 0:01:44.3]}
30... Rc8 {[%clk 0:00:18.1]} 31. h4 {[%clk 0:01:44]} 31... h5 {[%clk 0:00:17.3]}
32. Bf7 {[%clk 0:01:43.6]} 32... Rb5 {[%clk 0:00:15.8]} 33. Re8+ {[%clk
0:01:43.6]} 33... Rxe8 {[%clk 0:00:15.1]} 34. Bxe8 {[%clk 0:01:44.5]} 34... Kg8
{[%clk 0:00:15.6]} 35. Bxb5 {[%clk 0:01:44.4]} 1-0

[Event "Late-Titled-Tuesday-Blitz-June-25-2024"]
[Site "Chess.com"]
[Date "2024.06.25"]
[Round "6"]
[White "gabduschew"]
[Black "Tonychess32"]
[Result "0-1"]
[WhiteElo "2403"]
[BlackElo "2546"]
[TimeControl "180+1"]
[EndTime "15:03:27 PDT"]
[Termination "Tonychess32 won by resignation"]

1. e4 {[%clk 0:02:58.9]} 1... e6 {[%clk 0:03:00.3]} 2. d3 {[%clk 0:02:55.2]}
2... d5 {[%clk 0:03:00]} 3. Nd2 {[%clk 0:02:55.7]} 3... c5 {[%clk 0:02:59.6]} 4.
Ngf3 {[%clk 0:02:55.7]} 4... Nc6 {[%clk 0:03:00]} 5. g3 {[%clk 0:02:54.8]} 5...
dxe4 {[%clk 0:03:00.4]} 6. dxe4 {[%clk 0:02:55]} 6... e5 {[%clk 0:03:00.7]} 7.
Bg2 {[%clk 0:02:53.7]} 7... Nf6 {[%clk 0:03:00]} 8. Qe2 {[%clk 0:02:54]} 8...
Be7 {[%clk 0:02:59.8]} 9. c3 {[%clk 0:02:54.5]} 9... O-O {[%clk 0:02:59.8]} 10.
O-O {[%clk 0:02:55]} 10... Qc7 {[%clk 0:02:57]} 11. Rd1 {[%clk 0:02:47.1]} 11...
h6 {[%clk 0:02:55.9]} 12. Nf1 {[%clk 0:02:46.5]} 12... Be6 {[%clk 0:02:56]} 13.
h4 {[%clk 0:02:44.4]} 13... Rad8 {[%clk 0:02:56.2]} 14. Bd2 {[%clk 0:02:20.7]}
14... Qb6 {[%clk 0:02:44.4]} 15. Be1 {[%clk 0:02:07.2]} 15... Rxd1 {[%clk
0:02:37]} 16. Rxd1 {[%clk 0:02:06.8]} 16... Bxa2 {[%clk 0:02:32.7]} 17. Ne3
{[%clk 0:01:57.1]} 17... Rd8 {[%clk 0:01:55.2]} 18. Rxd8+ {[%clk 0:01:45]} 18...
Qxd8 {[%clk 0:01:52.1]} 19. Nf5 {[%clk 0:01:43.6]} 19... Be6 {[%clk 0:01:51.2]}
20. Bh3 {[%clk 0:01:33.2]} 20... Bf8 {[%clk 0:01:50.1]} 21. Qb5 {[%clk
0:01:20.5]} 21... Qd7 {[%clk 0:01:47.4]} 22. Qe2 {[%clk 0:01:01.6]} 22... g6
{[%clk 0:01:42.3]} 23. g4 {[%clk 0:00:49]} 23... gxf5 {[%clk 0:01:35.6]} 24.
gxf5 {[%clk 0:00:49.9]} 24... Bb3 {[%clk 0:01:35.3]} 25. Bd2 {[%clk 0:00:45]}
25... Bc2 {[%clk 0:01:30.1]} 26. Nh2 {[%clk 0:00:34.9]} 26... Qd3 {[%clk
0:01:16.5]} 0-1

[Event "Late-Titled-Tuesday-Blitz-June-25-2024"]
[Site "Chess.com"]
[Date "2024.06.25"]
[Round "6"]
[White "sammartin99"]
[Black "Hirna2005"]
[Result "0-1"]
[WhiteElo "2496"]
[BlackElo "2375"]
[TimeControl "180+1"]
[EndTime "15:03:28 PDT"]
[Termination "Hirna2005 won by resignation"]

1. d4 {[%clk 0:02:59.6]} 1... g6 {[%clk 0:03:00.3]} 2. e4 {[%clk 0:02:59.3]}
2... Bg7 {[%clk 0:03:00.9]} 3. Nc3 {[%clk 0:02:59.8]} 3... d6 {[%clk 0:03:01.5]}
4. Be3 {[%clk 0:02:59]} 4... a6 {[%clk 0:03:01.6]} 5. Qd2 {[%clk 0:02:56.5]}
5... b5 {[%clk 0:03:01.7]} 6. h4 {[%clk 0:02:53]} 6... Nf6 {[%clk 0:02:57.9]} 7.
f3 {[%clk 0:02:51.9]} 7... h5 {[%clk 0:02:56.6]} 8. Nh3 {[%clk 0:02:46.9]} 8...
Bxh3 {[%clk 0:02:56.5]} 9. Rxh3 {[%clk 0:02:45.2]} 9... Nbd7 {[%clk 0:02:56.8]}
10. O-O-O {[%clk 0:02:38.5]} 10... Rc8 {[%clk 0:02:56.7]} 11. e5 {[%clk
0:02:17.7]} 11... dxe5 {[%clk 0:02:44.2]} 12. dxe5 {[%clk 0:02:18.6]} 12... Nxe5
{[%clk 0:02:41.7]} 13. Qf2 {[%clk 0:02:18.5]} 13... Ned7 {[%clk 0:02:38.6]} 14.
Bd3 {[%clk 0:02:03.3]} 14... O-O {[%clk 0:02:34.6]} 15. Rg1 {[%clk 0:01:54.5]}
15... c5 {[%clk 0:02:30.7]} 16. g4 {[%clk 0:01:53]} 16... c4 {[%clk 0:02:30.6]}
17. Be2 {[%clk 0:01:52.6]} 17... b4 {[%clk 0:02:26.3]} 18. Ne4 {[%clk
0:01:51.8]} 18... hxg4 {[%clk 0:02:23.3]} 19. Nxf6+ {[%clk 0:01:47.9]} 19...
Nxf6 {[%clk 0:02:23.1]} 20. fxg4 {[%clk 0:01:48.6]} 20... Ne4 {[%clk 0:02:20.2]}
21. Qf3 {[%clk 0:01:44]} 21... b3 {[%clk 0:02:15]} 22. a3 {[%clk 0:01:37]} 22...
c3 {[%clk 0:02:06.6]} 23. bxc3 {[%clk 0:00:44.6]} 23... b2+ {[%clk 0:01:42.5]}
24. Kxb2 {[%clk 0:00:39.7]} 24... Nxc3 {[%clk 0:01:41.1]} 25. Kc1 {[%clk
0:00:29.6]} 25... Qa5 {[%clk 0:01:33.2]} 26. Bg5 {[%clk 0:00:04.6]} 26... Rfd8
{[%clk 0:01:23.2]} 0-1

[Event "Late-Titled-Tuesday-Blitz-June-25-2024"]
[Site "Chess.com"]
[Date "2024.06.25"]
[Round "6"]
[White "grzechu96"]
[Black "Msb2"]
[Result "0-1"]
[WhiteElo "2775"]
[BlackElo "3075"]
[TimeControl "180+1"]
[EndTime "15:03:30 PDT"]
[Termination "Msb2 won on time"]

1. e4 {[%clk 0:03:00.9]} 1... e6 {[%clk 0:03:00.4]} 2. d4 {[%clk 0:03:01]} 2...
d5 {[%clk 0:03:01.1]} 3. e5 {[%clk 0:03:01.5]} 3... c5 {[%clk 0:03:01.6]} 4. c3
{[%clk 0:03:02]} 4... Nc6 {[%clk 0:03:02.4]} 5. Nf3 {[%clk 0:03:02]} 5... Nge7
{[%clk 0:03:03.2]} 6. Na3 {[%clk 0:03:01]} 6... Bd7 {[%clk 0:03:03.8]} 7. Nc2
{[%clk 0:02:59.2]} 7... Qa5 {[%clk 0:03:04.5]} 8. Bd2 {[%clk 0:02:38.2]} 8...
Qb6 {[%clk 0:03:03.6]} 9. dxc5 {[%clk 0:02:37.9]} 9... Qc7 {[%clk 0:03:03.9]}
10. b4 {[%clk 0:02:17.2]} 10... Ng6 {[%clk 0:03:03.9]} 11. Ncd4 {[%clk
0:02:15.8]} 11... Ncxe5 {[%clk 0:03:03.1]} 12. Nxe5 {[%clk 0:02:15.3]} 12...
Nxe5 {[%clk 0:03:04]} 13. f4 {[%clk 0:02:15.7]} 13... Nc4 {[%clk 0:03:03.6]} 14.
Bxc4 {[%clk 0:02:11.5]} 14... dxc4 {[%clk 0:03:04.5]} 15. Qe2 {[%clk 0:02:10.8]}
15... b6 {[%clk 0:03:01.7]} 16. c6 {[%clk 0:02:08.9]} 16... Bxc6 {[%clk
0:03:01.5]} 17. Qxc4 {[%clk 0:02:09]} 17... Rc8 {[%clk 0:03:02.2]} 18. Qxc6+
{[%clk 0:02:02]} 18... Qxc6 {[%clk 0:03:03.1]} 19. Nxc6 {[%clk 0:02:02.9]} 19...
Rxc6 {[%clk 0:03:04]} 20. Ke2 {[%clk 0:01:45.6]} 20... g6 {[%clk 0:02:59.7]} 21.
Rac1 {[%clk 0:01:43.5]} 21... Bg7 {[%clk 0:03:00.1]} 22. c4 {[%clk 0:01:42.7]}
22... O-O {[%clk 0:03:00.1]} 23. Be3 {[%clk 0:01:41.1]} 23... Rfc8 {[%clk
0:02:26.5]} 24. c5 {[%clk 0:00:20.2]} 24... bxc5 {[%clk 0:02:27.4]} 25. Rxc5
{[%clk 0:00:17.6]} 25... Bf8 {[%clk 0:02:27.7]} 26. Rxc6 {[%clk 0:00:17.3]}
26... Rxc6 {[%clk 0:02:28.6]} 27. Bxa7 {[%clk 0:00:12.1]} 27... Bxb4 {[%clk
0:02:21]} 28. Rb1 {[%clk 0:00:07.1]} 28... Rc2+ {[%clk 0:02:09.3]} 29. Kd3
{[%clk 0:00:06.8]} 29... Rd2+ {[%clk 0:02:00.2]} 30. Ke3 {[%clk 0:00:06.1]}
30... Rxa2 {[%clk 0:02:00.4]} 31. Bd4 {[%clk 0:00:06.2]} 31... Ra4 {[%clk
0:01:50.6]} 32. g3 {[%clk 0:00:02.4]} 32... h6 {[%clk 0:01:49]} 33. Bf6 {[%clk
0:00:01.4]} 33... Kh7 {[%clk 0:01:45.5]} 34. Kf3 {[%clk 0:00:01]} 34... g5
{[%clk 0:01:45.2]} 0-1

[Event "Late-Titled-Tuesday-Blitz-June-25-2024"]
[Site "Chess.com"]
[Date "2024.06.25"]
[Round "6"]
[White "Heliosis11"]
[Black "Juliana_Figueira"]
[Result "1-0"]
[WhiteElo "2430"]
[BlackElo "1999"]
[TimeControl "180+1"]
[EndTime "15:03:30 PDT"]
[Termination "Heliosis11 won by checkmate"]

1. e4 {[%clk 0:02:51.6]} 1... c5 {[%clk 0:02:59.7]} 2. Nf3 {[%clk 0:02:39.3]}
2... d6 {[%clk 0:02:58.4]} 3. Bb5+ {[%clk 0:02:21.1]} 3... Bd7 {[%clk
0:02:54.5]} 4. Bxd7+ {[%clk 0:02:18.1]} 4... Qxd7 {[%clk 0:02:51.4]} 5. c4
{[%clk 0:02:18.2]} 5... Nf6 {[%clk 0:02:50.7]} 6. Nc3 {[%clk 0:01:53.6]} 6...
Nc6 {[%clk 0:02:47.5]} 7. d4 {[%clk 0:01:53.8]} 7... cxd4 {[%clk 0:02:46.8]} 8.
Nxd4 {[%clk 0:01:54.7]} 8... Nxd4 {[%clk 0:02:46.7]} 9. Qxd4 {[%clk 0:01:54.4]}
9... e6 {[%clk 0:02:42.5]} 10. Bg5 {[%clk 0:01:39.9]} 10... Be7 {[%clk
0:02:41.8]} 11. O-O {[%clk 0:01:39.8]} 11... O-O {[%clk 0:02:41.2]} 12. Rad1
{[%clk 0:01:40.2]} 12... Rac8 {[%clk 0:02:37.1]} 13. b3 {[%clk 0:01:40.6]} 13...
Rfd8 {[%clk 0:02:34.4]} 14. Qxa7 {[%clk 0:01:40.1]} 14... Qc6 {[%clk 0:02:28.3]}
15. Qe3 {[%clk 0:01:35.5]} 15... h6 {[%clk 0:02:23.4]} 16. Bh4 {[%clk
0:01:31.5]} 16... Ng4 {[%clk 0:02:11.8]} 17. Qg3 {[%clk 0:01:25.8]} 17... Bxh4
{[%clk 0:02:07.6]} 18. Qxh4 {[%clk 0:01:25.5]} 18... Ne5 {[%clk 0:02:06.8]} 19.
f4 {[%clk 0:01:22.8]} 19... Ng6 {[%clk 0:02:06.7]} 20. Qg3 {[%clk 0:01:22.4]}
20... Qb6+ {[%clk 0:02:04.3]} 21. Kh1 {[%clk 0:01:22]} 21... Qa5 {[%clk
0:01:58.6]} 22. f5 {[%clk 0:01:18.9]} 22... exf5 {[%clk 0:01:56.8]} 23. exf5
{[%clk 0:01:17.4]} 23... Ne5 {[%clk 0:01:56.8]} 24. Nd5 {[%clk 0:01:17.6]} 24...
Nc6 {[%clk 0:01:51.9]} 25. f6 {[%clk 0:01:08.3]} 25... g6 {[%clk 0:01:48.8]} 26.
Qh4 {[%clk 0:01:03.9]} 26... Kh7 {[%clk 0:01:48.7]} 27. Rd3 {[%clk 0:01:04.1]}
27... Qxa2 {[%clk 0:01:33.6]} 28. Rh3 {[%clk 0:01:01.6]} 28... Qd2 {[%clk
0:01:32.3]} 29. Nf4 {[%clk 0:00:57.7]} 29... h5 {[%clk 0:01:16.2]} 30. Qg5
{[%clk 0:00:52.7]} 30... Kg8 {[%clk 0:00:49.2]} 31. Rxh5 {[%clk 0:00:49.4]}
31... Kf8 {[%clk 0:00:49.2]} 32. Rh8# {[%clk 0:00:49.1]} 1-0